fUST/lending_fUST_20250120
["ID","MTS","AMOUNT","RATE_DAILY","PERIOD"]
[349702735,1737384644790,-500.0,0.00023272,3]
[349702736,1737384644799,-500.0,0.00023272,3]
[349702737,1737384644808,-500.0,0.00023272,3]
[349702738,1737384644817,-381.52868599,0.00023272,3]
[349702739,1737384644827,-500.0,0.00023272,3]
[349702740,1737384644836,-500.0,0.00023272,3]
[349702741,1737384644844,-500.0,0.00023272,3]
[349702742,1737384644854,-500.0,0.00023272,3]
[349702743,1737384644863,-639.58,0.00023272,3]
[349702744,1737384644872,-500.0,0.00023272,3]
[349702745,1737384644881,-500.0,0.00023272,3]
[349702746,1737384644891,-500.0,0.00023272,3]
[349702747,1737384644901,-518.56,0.00023272,3]
[349702748,1737384644910,-500.0,0.00023272,3]
[349702749,1737384644919,-500.0,0.00023272,3]
[349702750,1737384644929,-500.0,0.00023272,3]
[349702751,1737384644938,-500.0,0.00023272,3]
[349702752,1737384644947,-500.0,0.00023272,3]
[349702753,1737384644956,-2315.37,0.00023272,3]
[349702754,1737384644965,-544.11251378,0.00023272,3]
[349702755,1737384644975,-500.0,0.00023272,3]
[349702756,1737384644984,-500.0,0.00023272,3]
[349702757,1737384644993,-500.0,0.00023272,3]
[349702758,1737384645002,-997.39,0.00023272,3]
[349702759,1737384645011,-500.0,0.00023272,3]
[349702760,1737384645021,-500.0,0.00023272,3]
[349702761,1737384645031,-500.0,0.00023272,3]
[349702762,1737384645040,-500.0,0.00023272,3]
[349702763,1737384645049,-500.0,0.00023272,3]
[349702764,1737384645058,-500.0,0.00023272,3]
[349702765,1737384645067,-500.0,0.00023272,3]
[349702766,1737384645076,-649.29,0.00023272,3]
[349702767,1737384645085,-500.0,0.00023272,3]
[349702768,1737384645094,-500.0,0.00023272,3]
[349702769,1737384645103,-500.0,0.00023272,3]
[349702770,1737384645112,-500.0,0.00023272,3]
[349702771,1737384645121,-500.0,0.00023272,3]
[349702772,1737384645130,-500.0,0.00023272,3]
[349702773,1737384645139,-471.1,0.00023272,3]
[349702774,1737384645148,-500.0,0.00023272,3]
[349702775,1737384645158,-500.0,0.00023273,3]
[349702776,1737384645167,-500.0,0.00023273,3]
[349702777,1737384645179,-500.0,0.00023273,3]
[349702778,1737384645189,-500.0,0.00023273,3]
[349702779,1737384645198,-384.49,0.00023273,3]
[349702780,1737384645207,-500.0,0.00023273,3]
[349702781,1737384645216,-546.72,0.00023273,3]
[349702782,1737384645226,-500.0,0.00023273,3]
[349702783,1737384645236,-500.0,0.00023273,3]
[349702784,1737384645245,-500.0,0.00023273,3]
[349702785,1737384645255,-500.0,0.00023273,3]
[349702786,1737384645265,-500.0,0.00023273,3]
[349702787,1737384645274,-500.0,0.00023273,3]
[349702788,1737384645283,-500.0,0.00023273,3]
[349702789,1737384645292,-500.0,0.00023273,3]
[349702790,1737384645302,-500.0,0.00023273,3]
[349702791,1737384645311,-500.0,0.00023273,3]
[349702792,1737384645320,-500.0,0.00023273,3]
[349702793,1737384645330,-500.0,0.00023273,3]
[349702794,1737384645340,-595.12,0.00023273,3]
[349702795,1737384645349,-500.0,0.00023273,3]
[349702796,1737384645358,-186.26375421,0.00023273,3]
[349702797,1737384645368,-500.0,0.00023273,3]
[349702798,1737384645377,-500.0,0.00023273,3]
[349702799,1737384645479,-500.0,0.00023273,3]
[349702800,1737384645489,-500.0,0.00023273,3]
[349702801,1737384645499,-500.0,0.00023273,3]
[349702802,1737384645508,-500.0,0.00023273,3]
[349702803,1737384645518,-505.97771661,0.00023392,2]
[349702804,1737384645527,-186.71,0.00023408,3]
[349702805,1737384645537,-500.0,0.00023408,3]
[349702806,1737384645546,-500.0,0.00023408,3]
[349702807,1737384645555,-500.0,0.00023408,3]
[349702808,1737384645565,-500.0,0.00023408,3]
[349702809,1737384645574,-557.75,0.00023408,3]
[349702810,1737384645583,-500.0,0.00023408,3]
[349702811,1737384645592,-621.42,0.00023408,3]
[349702812,1737384645602,-500.0,0.00023408,3]
[349702813,1737384645611,-500.0,0.00023408,3]
[349702814,1737384645620,-505.26713758,0.00023408,3]
[349702815,1737384645630,-705.64,0.00023408,3]
[349702816,1737384645639,-500.0,0.00023408,3]
[349702817,1737384645649,-500.0,0.00023408,3]
[349702818,1737384645659,-500.0,0.00023408,3]
[349702819,1737384645668,-500.0,0.00023408,3]
[349702820,1737384645678,-500.0,0.00023408,3]
[349702821,1737384645687,-500.0,0.00023408,3]
[349702822,1737384645697,-500.0,0.00023408,3]
[349702824,1737384645707,-500.0,0.00023408,3]
[349702826,1737384645717,-500.0,0.00023408,3]
[349702828,1737384645726,-500.0,0.00023408,3]
[349702830,1737384645736,-500.0,0.00023408,3]
[349702832,1737384645746,-500.0,0.00023408,3]
[349702833,1737384645756,-309.86,0.00023408,3]
[349702834,1737384645765,-500.0,0.00023408,3]
[349702835,1737384645775,-500.0,0.00023408,3]
[349702836,1737384645785,-500.0,0.00023408,3]
[349702837,1737384645794,-500.0,0.00023408,3]
[349702838,1737384645803,-500.0,0.00023409,3]
[349702839,1737384645813,-500.0,0.00023409,3]
[349702840,1737384645822,-417.81106543,0.00023409,3]
[349702841,1737384645831,-500.0,0.00023409,3]
[349702842,1737384645841,-500.0,0.00023409,3]
[349702843,1737384645850,-500.0,0.00023409,3]
[349702844,1737384645860,-500.0,0.00023409,3]
[349702846,1737384645869,-500.0,0.00023409,3]
[349702848,1737384645878,-500.0,0.00023409,3]
[349702849,1737384645888,-500.0,0.00023409,3]
[349702850,1737384645897,-500.0,0.00023409,3]
[349702851,1737384645907,-500.0,0.00023409,3]
[349702852,1737384645917,-500.0,0.00023409,3]
[349702853,1737384645926,-500.0,0.00023409,3]
[349702855,1737384645936,-500.0,0.00023409,3]
[349702856,1737384645945,-500.0,0.00023409,3]
[349702859,1737384645955,-524.50377402,0.00023409,3]
[349702860,1737384645966,-500.0,0.00023409,3]
[349702863,1737384645976,-500.0,0.00023409,3]
[349702865,1737384645985,-500.0,0.00023409,3]
[349702867,1737384645995,-500.0,0.00023409,3]
[349702869,1737384646004,-500.0,0.00023409,3]
[349702871,1737384646013,-500.0,0.00023409,3]
[349702873,1737384646023,-2315.37,0.00023409,3]
[349702875,1737384646032,-500.0,0.00023409,3]
[349702877,1737384646041,-500.0,0.00023409,3]
[349702879,1737384646051,-500.0,0.00023409,3]
[349702881,1737384646060,-997.39,0.00023409,3]
[349702883,1737384646070,-500.0,0.00023409,3]
[349702885,1737384646080,-500.0,0.00023409,3]
[349702887,1737384646089,-500.0,0.00023409,3]
[349702889,1737384646099,-583.3,0.00023409,3]
[349702891,1737384646108,-500.0,0.00023409,3]
[349702893,1737384646118,-500.0,0.00023409,3]
[349702895,1737384646127,-649.29,0.00023409,3]
[349702897,1737384646136,-500.0,0.00023409,3]
[349702899,1737384646149,-500.0,0.00023409,3]
[349702901,1737384646159,-500.0,0.00023409,3]
[349702903,1737384646169,-500.0,0.00023409,3]
[349702905,1737384646181,-500.0,0.00023409,3]
[349702907,1737384646191,-500.0,0.0002341,3]
[349702909,1737384646200,-500.0,0.0002341,3]
[349702911,1737384646209,-572.07068454,0.0002341,3]
[349702913,1737384646219,-500.0,0.0002341,3]
[349702915,1737384646229,-500.0,0.0002341,3]
[349702917,1737384646239,-500.0,0.0002341,3]
[349702919,1737384646248,-500.0,0.0002341,3]
[349702921,1737384646259,-565.46,0.0002341,3]
[349702923,1737384646269,-614.7,0.0002341,3]
[349702925,1737384646279,-500.0,0.0002341,3]
[349702927,1737384646289,-500.0,0.0002341,3]
[349702929,1737384646299,-500.0,0.0002341,3]
[349702931,1737384646308,-392.37917441,0.0002341,3]
[349702933,1737384646318,-500.0,0.0002341,3]
[349702935,1737384646328,-500.0,0.0002341,3]
[349702938,1737384646337,-500.0,0.0002341,3]
[349702940,1737384646347,-217.17143254,0.0002341,3]
[349702942,1737384646357,-500.0,0.00023545,3]
[349702944,1737384646367,-500.0,0.00023545,3]
[349702945,1737384646376,-500.0,0.00023545,3]
[349702947,1737384646385,-500.0,0.00023545,3]
[349702949,1737384646395,-500.0,0.00023545,3]
[349702951,1737384646406,-621.42,0.00023545,3]
[349702953,1737384646415,-500.0,0.00023545,3]
[349702955,1737384646425,-500.0,0.00023545,3]
[349702958,1737384646435,-705.64,0.00023545,3]
[349702960,1737384646445,-500.0,0.00023545,3]
[349702962,1737384646455,-500.0,0.00023545,3]
[349702964,1737384646464,-500.0,0.00023545,3]
[349702966,1737384646473,-500.0,0.00023545,3]
[349702968,1737384646483,-500.0,0.00023545,3]
[349702970,1737384646493,-500.0,0.00023545,3]
[349702972,1737384646502,-500.0,0.00023545,3]
[349702974,1737384646511,-500.0,0.00023545,3]
[349702976,1737384646521,-500.0,0.00023545,3]
[349702978,1737384646530,-500.0,0.00023545,3]
[349702980,1737384646539,-500.0,0.00023545,3]
[349702982,1737384646549,-500.0,0.00023545,3]
[349702984,1737384646559,-500.0,0.00023545,3]
[349702986,1737384646568,-500.0,0.00023545,3]
[349702988,1737384646578,-500.0,0.00023545,3]
[349702990,1737384646587,-500.0,0.00023546,3]
[349702992,1737384646597,-500.0,0.00023546,3]
[349702994,1737384646606,-500.0,0.00023546,3]
[349702996,1737384646615,-500.0,0.00023546,3]
[349702998,1737384646624,-500.0,0.00023546,3]
[349703000,1737384646634,-500.0,0.00023546,3]
[349703002,1737384646643,-500.0,0.00023546,3]
[349703004,1737384646653,-500.0,0.00023546,3]
[349703006,1737384646662,-500.0,0.00023546,3]
[349703008,1737384646672,-286.77,0.00023546,3]
[349703010,1737384646681,-500.0,0.00023546,3]
[349703012,1737384646691,-163.26452603,0.00023546,3]
[349703014,1737384646700,-500.0,0.00023546,3]
[349703016,1737384646710,-500.0,0.00023546,3]
[349703018,1737384646720,-336.28,0.00023546,3]
[349703020,1737384646729,-500.0,0.00023546,3]
[349703022,1737384646738,-291.58,0.00023546,3]
[349703024,1737384646747,-500.0,0.00023546,3]
[349703026,1737384646756,-2315.37,0.00023546,3]
[349703028,1737384646765,-238.49,0.00023546,3]
[349703030,1737384646774,-500.0,0.00023546,3]
[349703032,1737384646784,-997.39,0.00023546,3]
[349703034,1737384646794,-500.0,0.00023546,3]
[349703036,1737384646803,-500.0,0.00023546,3]
[349703038,1737384646812,-533.55,0.00023546,3]
[349703040,1737384646821,-500.0,0.00023546,3]
[349703042,1737384646831,-500.0,0.00023546,3]
[349703044,1737384646840,-649.29,0.00023546,3]
[349703046,1737384646849,-500.0,0.00023546,3]
[349703048,1737384646859,-504.28223705,0.00023546,3]
[349703050,1737384646868,-552.55,0.00023546,3]
[349703052,1737384646878,-500.0,0.00023547,3]
[349703054,1737384646887,-500.0,0.00023547,3]
[349703056,1737384646897,-500.0,0.00023547,3]
[349703058,1737384646907,-500.0,0.00023547,3]
[349703060,1737384646916,-500.0,0.00023547,3]
[349703062,1737384646925,-500.0,0.00023547,3]
[349703064,1737384646936,-500.0,0.00023547,3]
[349703066,1737384646945,-296.96080705,0.00023547,3]
[349703068,1737384646955,-500.0,0.00023547,3]
[349703070,1737384646964,-500.0,0.00023547,3]
[349703072,1737384646974,-500.0,0.00023547,3]
[349703074,1737384646983,-395.0,0.00023576,2]
[349703076,1737384646992,-300.0,0.000236,10]
[349703078,1737384647001,-500.0,0.00023613,2]
[349703080,1737384647010,-500.0,0.00023682,3]
[349703083,1737384647019,-500.0,0.00023682,3]
[349703084,1737384647029,-255.3392049,0.00023682,3]
[349703086,1737384647039,-500.0,0.00023682,3]
[349703089,1737384647049,-500.0,0.00023682,3]
[349703091,1737384647058,-621.42,0.00023682,3]
[349703093,1737384647067,-500.0,0.00023682,3]
[349703095,1737384647076,-705.64,0.00023682,3]
[349703097,1737384647085,-500.0,0.00023682,3]
[349703099,1737384647094,-500.0,0.00023682,3]
[349703101,1737384647104,-500.0,0.00023682,3]
[349703103,1737384647113,-500.0,0.00023682,3]
[349703105,1737384647123,-500.0,0.00023682,3]
[349703107,1737384647132,-500.0,0.00023683,3]
[349703109,1737384647142,-500.0,0.00023683,3]
[349703111,1737384647152,-2315.37,0.00023683,3]
[349703113,1737384647162,-997.39,0.00023683,3]
[349703115,1737384647171,-649.29,0.00023683,3]
[349703117,1737384647184,-500.0,0.00023683,3]
[349703119,1737384647194,-500.0,0.00023684,3]
[349703121,1737384647204,-647.85,0.00023684,3]
[349703123,1737384647213,-1200.0,0.00023749,2]
[349703125,1737384647223,-500.0,0.00023819,3]
[349703127,1737384647232,-500.0,0.00023819,3]
[349703129,1737384647242,-621.42,0.00023819,3]
[349703131,1737384647252,-500.0,0.00023819,3]
[349703133,1737384647261,-705.64,0.00023819,3]
[349703135,1737384647271,-500.0,0.00023819,3]
[349703137,1737384647280,-500.0,0.00023819,3]
[349703139,1737384647289,-500.0,0.00023819,3]
[349703141,1737384647299,-500.0,0.00023819,3]
[349703143,1737384647308,-500.0,0.00023819,3]
[349703145,1737384647317,-2315.37,0.0002382,3]
[349703147,1737384647327,-997.39,0.0002382,3]
[349703149,1737384647337,-649.29,0.0002382,3]
[349703151,1737384647346,-500.0,0.0002382,3]
[349703153,1737384647356,-252.09783994,0.000239,2]
[349703155,1737384647366,-2224.15775667,0.000239,3]
[349703157,1737384647375,-2224.15775645,0.00023934,3]
[349703160,1737384647385,-173.56,0.00023956,3]
[349703162,1737384647395,-500.0,0.00023956,3]
[349703164,1737384647406,-621.42,0.00023956,3]
[349703166,1737384647415,-500.0,0.00023956,3]
[349703168,1737384647425,-705.64,0.00023956,3]
[349703170,1737384647434,-500.0,0.00023956,3]
[349703172,1737384647443,-586.4,0.00023956,3]
[349703174,1737384647452,-500.0,0.00023956,3]
[349703176,1737384647462,-500.0,0.00023956,3]
[349703178,1737384647471,-500.0,0.00023956,3]
[349703180,1737384647480,-2315.37,0.00023957,3]
[349703182,1737384647490,-997.39,0.00023957,3]
[349703184,1737384647499,-649.29,0.00023957,3]
[349703186,1737384647508,-500.0,0.00023957,3]
[349703188,1737384647518,-2224.15775645,0.00023969,3]
[349703190,1737384647527,-4351.1357637,0.00024,30]
[349703192,1737384647537,-1710.21697216,0.00024,10]
[349703194,1737384647546,-2224.15775645,0.00024003,3]
[349703196,1737384647556,-2224.15775645,0.00024038,3]
[349703198,1737384647566,-2224.15775645,0.00024072,3]
[349703200,1737384647576,-500.0,0.00024093,3]
[349703202,1737384647586,-621.42,0.00024093,3]
[349703204,1737384647595,-500.0,0.00024093,3]
[349703206,1737384647605,-705.64,0.00024093,3]
[349703208,1737384647614,-500.0,0.00024093,3]
[349703210,1737384647623,-500.0,0.00024093,3]
[349703212,1737384647633,-500.0,0.00024093,3]
[349703214,1737384647643,-500.0,0.00024093,3]
[349703216,1737384647654,-2315.37,0.00024094,3]
[349703218,1737384647663,-151.0,0.00024094,7]
[349703220,1737384647672,-997.39,0.00024094,3]
[349703222,1737384647681,-649.29,0.00024094,3]
[349703224,1737384647691,-500.0,0.00024094,3]
[349703226,1737384647700,-2224.15775645,0.00024107,3]
[349703228,1737384647710,-151.733983,0.00024141,7]
[349703230,1737384647720,-2224.15775645,0.00024141,3]
[349703232,1737384647729,-2224.15775645,0.00024176,3]
[349703244,1737384647739,-1091.39592478,0.00024199,5]
[349703246,1737384647836,-4789.99694642,0.000242,5]
[349703248,1737384647846,-1666.0,0.000242,2]
[349703250,1737384647856,-2224.15775645,0.0002421,3]
[349703252,1737384647865,-166.542948,0.00024224,2]
[349703254,1737384647874,-500.0,0.0002423,3]
[349703256,1737384647884,-621.42,0.0002423,3]
[349703258,1737384647893,-500.0,0.0002423,3]
[349703260,1737384647904,-705.64,0.0002423,3]
[349703262,1737384647914,-232.75,0.0002423,3]
[349703264,1737384647924,-259.5,0.0002423,3]
[349703266,1737384647933,-500.0,0.0002423,3]
[349703268,1737384647943,-500.0,0.0002423,3]
[349703270,1737384647951,-2315.37,0.00024231,3]
[349703272,1737384647961,-997.39,0.00024231,3]
[349703274,1737384647970,-649.29,0.00024231,3]
[349703277,1737384647980,-500.0,0.00024231,3]
[349703279,1737384647989,-2224.15775645,0.00024245,3]
[349703281,1737384647999,-160.0,0.0002425,5]
[349703283,1737384648008,-299669.38051021,0.0002425,30]
[349703285,1737384648024,-24133.21116,0.0002425,30]
[349703288,1737384648035,-4510.01595375,0.0002425,30]
[349703293,1737384648076,-500.0,0.00022768,2]
[349703295,1737384648086,-216.15253492,0.00024248,2]
[349703297,1737384648095,-10039.62495718,0.0002425,30]
[349703609,1737385577081,166.508913,0.00013973,2]
[349703668,1737385832684,-351.813433,0.00017781,2]
[349703669,1737385832694,-351.813433,0.00017961,2]
[349703670,1737385832704,-3060.4635021,0.00018852,2]
[349703671,1737385832713,-615.14488603,0.000189,2]
[349703672,1737385832723,-303.03939421,0.00019,2]
[349703673,1737385832732,-303.03939421,0.0001919,2]
[349703674,1737385832742,-250.0,0.00019204,2]
[349703676,1737385832751,-162.1301158,0.00019306,2]
[349703677,1737385832761,-303.03939421,0.0001938,2]
[349703678,1737385832770,-274.9384984,0.00019388,2]
[349703679,1737385832780,-303.03939421,0.0001957,2]
[349703681,1737385832789,-351.813433,0.00019662,2]
[349703682,1737385832799,-1148.002297,0.00019662,2]
[349703683,1737385832809,-303.03939421,0.0001976,2]
[349703684,1737385832818,-300.0,0.00019949,2]
[349703685,1737385832828,-454.55909132,0.0001995,4]
[349703686,1737385832837,-2646.0,0.00020041,2]
[349703687,1737385832847,-451.41693526,0.0002014,4]
[349703688,1737385832856,-791.1589531,0.00020192,2]
[349703689,1737385832865,-215.28971942,0.000203,2]
[349703690,1737385832874,-215.28971941,0.00020314,2]
[349703691,1737385832885,-500.0,0.00020414,2]
[349703692,1737385832895,-24900.0,0.00020765,2]
[349703693,1737385832905,-210.412,0.0002097,2]
[349703694,1737385832914,-1504.2313044,0.00021644,4]
[349703695,1737385832927,-1141.7686956,0.00021644,4]
[349703696,1737385832937,-420.0,0.00021723,2]
[349703697,1737385832947,-174.29161901,0.00021817,2]
[349703698,1737385832958,-3000.0,0.000219,2]
[349703699,1737385832967,-1408.63324581,0.000219,3]
[349703700,1737385832976,-3000.0,0.0002191,2]
[349703701,1737385832987,-500.0,0.00021917,3]
[349703702,1737385832997,-598.95669132,0.00021917,3]
[349703703,1737385833006,-502.26084643,0.00021917,3]
[349703704,1737385833016,-500.0,0.00021917,3]
[349703705,1737385833026,-500.0,0.00021917,3]
[349703706,1737385833036,-504.6851846,0.00021917,3]
[349703707,1737385833045,-500.0,0.00021917,3]
[349703708,1737385833055,-500.0,0.00021917,3]
[349703709,1737385833064,-601.42408712,0.00021917,3]
[349703710,1737385833074,-500.0,0.00021917,3]
[349703711,1737385833083,-512.24818811,0.00021917,3]
[349703712,1737385833093,-500.0,0.00021917,3]
[349703713,1737385833102,-423.93375257,0.00021917,3]
[349703714,1737385833112,-500.0,0.00021917,3]
[349703715,1737385833122,-500.0,0.00021917,3]
[349703716,1737385833133,-500.0,0.00021917,3]
[349703717,1737385833143,-500.0,0.00021917,3]
[349703718,1737385833152,-500.0,0.00021917,3]
[349703719,1737385833162,-628.97,0.00021917,3]
[349703720,1737385833172,-500.0,0.00021917,3]
[349703721,1737385833181,-500.0,0.00021917,3]
[349703722,1737385833191,-457.94030538,0.00021917,3]
[349703723,1737385833201,-500.0,0.00021917,3]
[349703724,1737385833211,-500.0,0.00021917,3]
[349703725,1737385833220,-500.0,0.00021917,3]
[349703726,1737385833229,-500.0,0.00021917,3]
[349703727,1737385833239,-500.0,0.00021917,3]
[349703728,1737385833248,-500.0,0.00021917,3]
[349703729,1737385833257,-500.0,0.00021917,3]
[349703730,1737385833267,-500.0,0.00021917,3]
[349703731,1737385833276,-500.0,0.00021917,3]
[349703732,1737385833285,-500.0,0.00021917,3]
[349703733,1737385833295,-500.0,0.00021917,3]
[349703734,1737385833304,-237.9477663,0.00021917,2]
[349703735,1737385833314,-500.0,0.00021917,3]
[349703736,1737385833324,-500.0,0.00021917,3]
[349703737,1737385833333,-500.0,0.00021917,3]
[349703738,1737385833342,-500.0,0.00021917,3]
[349703739,1737385833352,-500.0,0.00021917,3]
[349703740,1737385833361,-500.0,0.00021917,3]
[349703741,1737385833370,-500.0,0.00021917,3]
[349703742,1737385833381,-500.0,0.00021917,3]
[349703743,1737385833390,-500.0,0.00021917,3]
[349703744,1737385833401,-500.0,0.00021917,3]
[349703745,1737385833411,-500.0,0.00021917,3]
[349703746,1737385833421,-500.0,0.00021917,3]
[349703747,1737385833431,-500.0,0.00021917,3]
[349703748,1737385833441,-500.0,0.00021917,3]
[349703749,1737385833452,-500.0,0.00021917,3]
[349703750,1737385833462,-500.0,0.00021917,3]
[349703751,1737385833471,-500.0,0.00021917,3]
[349703752,1737385833482,-566.27,0.00021917,3]
[349703753,1737385833495,-500.0,0.00021917,3]
[349703754,1737385833505,-500.0,0.00021917,3]
[349703755,1737385833514,-500.0,0.00021917,3]
[349703756,1737385833526,-500.0,0.00021917,3]
[349703757,1737385833536,-501.03632925,0.00021917,3]
[349703758,1737385833546,-500.0,0.00021917,3]
[349703759,1737385833556,-501.16352778,0.00021917,3]
[349703760,1737385833567,-544.25419957,0.00021917,3]
[349703761,1737385833576,-500.0,0.00021917,3]
[349703762,1737385833587,-500.0,0.00021917,3]
[349703763,1737385833597,-500.0,0.00021917,3]
[349703764,1737385833606,-500.0,0.00021917,3]
[349703765,1737385833616,-500.0,0.00021917,3]
[349703766,1737385833626,-500.0,0.00021917,3]
[349703767,1737385833638,-500.0,0.00021917,3]
[349703768,1737385833647,-494.14944118,0.00021917,3]
[349703769,1737385833658,-500.0,0.00021917,3]
[349703770,1737385833668,-500.0,0.00021917,3]
[349703771,1737385833677,-500.0,0.00021917,3]
[349703772,1737385833687,-500.0,0.00021917,3]
[349703773,1737385833696,-500.0,0.00021917,3]
[349703774,1737385833706,-500.0,0.00021917,3]
[349703775,1737385833716,-500.0,0.00021917,3]
[349703776,1737385833726,-500.0,0.00021917,3]
[349703777,1737385833736,-500.0,0.00021917,3]
[349703778,1737385833745,-500.0,0.00021917,3]
[349703779,1737385833755,-500.0,0.00021917,3]
[349703780,1737385833765,-500.0,0.00021917,3]
[349703781,1737385833775,-500.0,0.00021917,3]
[349703782,1737385833785,-500.0,0.00021917,3]
[349703783,1737385833795,-500.0,0.00021917,3]
[349703784,1737385833804,-507.36743671,0.00021917,3]
[349703785,1737385833814,-500.0,0.00021917,3]
[349703786,1737385833824,-500.0,0.00021917,3]
[349703787,1737385833834,-500.0,0.00021917,3]
[349703788,1737385833844,-500.0,0.00021917,3]
[349703789,1737385833853,-500.0,0.00021917,3]
[349703790,1737385833863,-500.0,0.00021917,3]
[349703791,1737385833872,-500.0,0.00021917,3]
[349703792,1737385833884,-500.0,0.00021917,3]
[349703793,1737385833893,-500.0,0.00021917,3]
[349703794,1737385833902,-520.19320106,0.00021917,3]
[349703795,1737385833912,-500.0,0.00021917,3]
[349703796,1737385833922,-500.0,0.00021917,3]
[349703797,1737385833933,-500.0,0.00021917,3]
[349703798,1737385833942,-519.12,0.00021917,3]
[349703799,1737385833952,-500.0,0.00021917,2]
[349703800,1737385833961,-500.0,0.00021917,3]
[349703801,1737385833971,-500.0,0.00021917,3]
[349703802,1737385833980,-500.0,0.00021917,3]
[349703803,1737385833990,-500.0,0.00021917,3]
[349703804,1737385834000,-323.02524891,0.00021917,3]
[349703805,1737385834009,-644.24592478,0.00021917,3]
[349703806,1737385834018,-500.00000001,0.00021917,3]
[349703807,1737385834028,-500.0,0.00021917,3]
[349703808,1737385834037,-500.0,0.00021917,3]
[349703809,1737385834046,-212.58890195,0.00021917,3]
[349703810,1737385834056,-272.38291623,0.00021917,3]
[349703811,1737385834065,-500.0,0.00021917,3]
[349703812,1737385834075,-501.39972131,0.00021917,3]
[349703813,1737385834085,-500.0,0.00021917,3]
[349703814,1737385834095,-500.0,0.00021917,3]
[349703815,1737385834105,-585.35515571,0.00021917,3]
[349703816,1737385834116,-500.0,0.00021917,3]
[349703817,1737385834126,-500.0,0.00021917,3]
[349703818,1737385834140,-500.0,0.00021917,3]
[349703819,1737385834150,-423.77451155,0.00021917,3]
[349703820,1737385834159,-598.24306704,0.00021917,3]
[349703821,1737385834169,-500.0,0.00021917,3]
[349703822,1737385834178,-550.0,0.00021917,3]
[349703823,1737385834187,-500.0,0.00021917,3]
[349703824,1737385834197,-500.0,0.00021917,3]
[349703825,1737385834206,-500.0,0.00021917,3]
[349703826,1737385834216,-500.0,0.00021917,3]
[349703827,1737385834225,-500.0,0.00021917,3]
[349703828,1737385834235,-500.0,0.00021917,3]
[349703829,1737385834244,-500.0,0.00021917,3]
[349703830,1737385834254,-500.0,0.00021917,3]
[349703831,1737385834264,-500.0,0.00021917,3]
[349703832,1737385834274,-500.0,0.00021917,3]
[349703833,1737385834283,-500.0,0.00021917,3]
[349703834,1737385834292,-500.0,0.00021917,3]
[349703835,1737385834301,-500.0,0.00021917,3]
[349703836,1737385834311,-500.0,0.00021917,3]
[349703837,1737385834320,-500.0,0.00021917,3]
[349703838,1737385834330,-311.43220808,0.00021917,3]
[349703839,1737385834339,-500.0,0.00021917,3]
[349703840,1737385834348,-566.20790799,0.00021917,3]
[349703841,1737385834357,-502.94435537,0.00021917,3]
[349703842,1737385834366,-500.0,0.00021917,3]
[349703843,1737385834376,-500.0,0.00021917,3]